[Event "Early-Titled-Tuesday-Blitz-May-14-2024"]
[Site "Chess.com"]
[Date "2024.05.14"]
[Round "2"]
[White "ketster"]
[Black "super_emi_26"]
[Result "1-0"]
[WhiteElo "2626"]
[BlackElo "2890"]
[TimeControl "180+1"]
[EndTime "8:17:53 PDT"]
[Termination "ketster won by resignation"]

1. d4 {[%clk 0:03:00.9]} 1... Nf6 {[%clk 0:02:59.9]} 2. c4 {[%clk 0:03:00.5]}
2... e6 {[%clk 0:03:00.4]} 3. Nc3 {[%clk 0:02:59.6]} 3... Bb4 {[%clk 0:02:57.5]}
4. g3 {[%clk 0:02:59.5]} 4... d5 {[%clk 0:02:57]} 5. Bg2 {[%clk 0:02:59.2]} 5...
O-O {[%clk 0:02:56.2]} 6. Nf3 {[%clk 0:02:59.3]} 6... c5 {[%clk 0:02:42.9]} 7.
dxc5 {[%clk 0:02:55]} 7... Ne4 {[%clk 0:02:40.4]} 8. Bd2 {[%clk 0:02:46.6]} 8...
Nxd2 {[%clk 0:02:39.1]} 9. Qxd2 {[%clk 0:02:43.4]} 9... dxc4 {[%clk 0:02:16.3]}
10. O-O {[%clk 0:02:39.4]} 10... Qe7 {[%clk 0:01:54.6]} 11. a3 {[%clk
0:02:29.2]} 11... Rd8 {[%clk 0:01:46.1]} 12. Qc2 {[%clk 0:02:20.7]} 12... Bxc5
{[%clk 0:01:38]} 13. Ne5 {[%clk 0:02:19.3]} 13... Nd7 {[%clk 0:01:21]} 14. Nxc4
{[%clk 0:02:17.6]} 14... Nb6 {[%clk 0:01:20.5]} 15. Na5 {[%clk 0:02:07.5]} 15...
Rb8 {[%clk 0:01:16.3]} 16. b4 {[%clk 0:01:40.2]} 16... Bd4 {[%clk 0:01:16.1]}
17. e3 {[%clk 0:01:34.5]} 17... Bxc3 {[%clk 0:01:04.3]} 18. Qxc3 {[%clk
0:01:35.4]} 18... Nd5 {[%clk 0:01:04.3]} 19. Qe5 {[%clk 0:01:29.3]} 19... Qd6
{[%clk 0:01:04.4]} 20. Qxd6 {[%clk 0:01:24.2]} 20... Rxd6 {[%clk 0:01:05.3]} 21.
Rfd1 {[%clk 0:01:24.4]} 21... b6 {[%clk 0:01:03.5]} 22. Nc4 {[%clk 0:01:22]}
22... Rd7 {[%clk 0:00:57.4]} 23. Ne5 {[%clk 0:01:17.6]} 23... Rc7 {[%clk
0:00:56.9]} 24. e4 {[%clk 0:01:13.4]} 24... f6 {[%clk 0:00:49.7]} 25. exd5
{[%clk 0:00:57.9]} 25... fxe5 {[%clk 0:00:50]} 26. d6 {[%clk 0:00:58]} 26... Rd7
{[%clk 0:00:46.8]} 27. Bc6 {[%clk 0:00:56.8]} 27... Rd8 {[%clk 0:00:47]} 28. d7
{[%clk 0:00:51.5]} 28... Bb7 {[%clk 0:00:46.2]} 29. b5 {[%clk 0:00:49.8]} 29...
Kf7 {[%clk 0:00:46.6]} 30. Re1 {[%clk 0:00:35.9]} 30... Ke7 {[%clk 0:00:42.8]}
31. Rad1 {[%clk 0:00:29]} 31... Kf6 {[%clk 0:00:41.9]} 32. f4 {[%clk 0:00:23.6]}
32... exf4 {[%clk 0:00:38.3]} 33. Rd6 {[%clk 0:00:23.7]} 33... fxg3 {[%clk
0:00:34]} 34. Rdxe6+ {[%clk 0:00:23]} 34... Kf7 {[%clk 0:00:34.5]} 35. Re8
{[%clk 0:00:18.8]} 35... gxh2+ {[%clk 0:00:34]} 36. Kxh2 {[%clk 0:00:18.7]}
36... Bxc6 {[%clk 0:00:23.1]} 37. Rxd8 {[%clk 0:00:17.5]} 37... Rxd8 {[%clk
0:00:22.1]} 38. bxc6 {[%clk 0:00:17.3]} 1-0

[Event "Early-Titled-Tuesday-Blitz-May-14-2024"]
[Site "Chess.com"]
[Date "2024.05.14"]
[Round "2"]
[White "Dolphin_2010"]
[Black "ulises2013"]
[Result "0-1"]
[WhiteElo "2618"]
[BlackElo "2925"]
[TimeControl "180+1"]
[EndTime "8:17:54 PDT"]
[Termination "ulises2013 won on time"]

1. d4 {[%clk 0:02:55]} 1... g6 {[%clk 0:03:00.9]} 2. e4 {[%clk 0:02:54.6]} 2...
Bg7 {[%clk 0:03:01.3]} 3. Nc3 {[%clk 0:02:55]} 3... c5 {[%clk 0:03:01.7]} 4.
dxc5 {[%clk 0:02:55.4]} 4... Bxc3+ {[%clk 0:03:01.7]} 5. bxc3 {[%clk 0:02:56.3]}
5... Qa5 {[%clk 0:03:02.2]} 6. Nf3 {[%clk 0:02:54.9]} 6... Nc6 {[%clk
0:03:02.1]} 7. Bd3 {[%clk 0:02:54.2]} 7... Nf6 {[%clk 0:03:02.4]} 8. O-O {[%clk
0:02:52.9]} 8... Qxc5 {[%clk 0:03:02.4]} 9. Bh6 {[%clk 0:02:52.5]} 9... d6
{[%clk 0:03:01.2]} 10. Qd2 {[%clk 0:02:47.5]} 10... Rg8 {[%clk 0:02:58.3]} 11.
Nd4 {[%clk 0:02:45.1]} 11... g5 {[%clk 0:02:42.6]} 12. Nf3 {[%clk 0:02:24.8]}
12... Ne5 {[%clk 0:02:25.4]} 13. Nxe5 {[%clk 0:02:10.1]} 13... Qxe5 {[%clk
0:02:25.3]} 14. f4 {[%clk 0:02:07.8]} 14... Qc5+ {[%clk 0:01:44.4]} 15. Kh1
{[%clk 0:02:05.6]} 15... gxf4 {[%clk 0:01:37.6]} 16. Bxf4 {[%clk 0:01:48.4]}
16... Bd7 {[%clk 0:01:36.7]} 17. Rae1 {[%clk 0:01:29.4]} 17... Bc6 {[%clk
0:01:36.5]} 18. Be3 {[%clk 0:01:10.4]} 18... Qh5 {[%clk 0:01:33.1]} 19. Rxf6
{[%clk 0:00:55.5]} 19... exf6 {[%clk 0:01:32.5]} 20. Qf2 {[%clk 0:00:54.1]}
20... f5 {[%clk 0:01:18.9]} 21. Bf4 {[%clk 0:00:46.7]} 21... Kd7 {[%clk
0:01:07.4]} 22. Be2 {[%clk 0:00:33.4]} 22... Qg6 {[%clk 0:01:05.3]} 23. Rd1
{[%clk 0:00:33.7]} 23... Ke8 {[%clk 0:00:36.7]} 24. Rxd6 {[%clk 0:00:28.4]}
24... Qg7 {[%clk 0:00:37.1]} 25. Bg3 {[%clk 0:00:10.4]} 25... Qxc3 {[%clk
0:00:29.5]} 26. Qxf5 {[%clk 0:00:06.7]} 26... Rg6 {[%clk 0:00:23.6]} 27. Rd3
{[%clk 0:00:03.4]} 27... Qf6 {[%clk 0:00:20.5]} 28. Qc5 {[%clk 0:00:02.4]} 28...
Rd8 {[%clk 0:00:18.7]} 29. Re3 {[%clk 0:00:00.5]} 29... Qa1+ {[%clk 0:00:17.8]}
30. Bd1 {[%clk 0:00:00.5]} 30... Rxd1+ {[%clk 0:00:17]} 0-1

[Event "Early-Titled-Tuesday-Blitz-May-14-2024"]
[Site "Chess.com"]
[Date "2024.05.14"]
[Round "2"]
[White "lucasran"]
[Black "SchmakAttack"]
[Result "0-1"]
[WhiteElo "2549"]
[BlackElo "2791"]
[TimeControl "180+1"]
[EndTime "8:17:54 PDT"]
[Termination "SchmakAttack won by checkmate"]

1. c4 {[%clk 0:02:59.6]} 1... g6 {[%clk 0:02:57.3]} 2. Nf3 {[%clk 0:02:58.4]}
2... Bg7 {[%clk 0:02:57.5]} 3. e4 {[%clk 0:02:58.4]} 3... e6 {[%clk 0:02:54.1]}
4. d4 {[%clk 0:02:58.1]} 4... Ne7 {[%clk 0:02:54.4]} 5. Nc3 {[%clk 0:02:58.4]}
5... O-O {[%clk 0:02:52.5]} 6. Be2 {[%clk 0:02:54]} 6... d5 {[%clk 0:02:51.4]}
7. cxd5 {[%clk 0:02:50.4]} 7... exd5 {[%clk 0:02:52.3]} 8. e5 {[%clk 0:02:51.3]}
8... Nd7 {[%clk 0:02:45.2]} 9. Bg5 {[%clk 0:02:27]} 9... f6 {[%clk 0:02:45.4]}
10. exf6 {[%clk 0:02:26.9]} 10... Nxf6 {[%clk 0:02:46.3]} 11. h4 {[%clk
0:02:16.9]} 11... h6 {[%clk 0:02:25.1]} 12. Bxf6 {[%clk 0:02:13.4]} 12... Bxf6
{[%clk 0:02:24]} 13. Qd2 {[%clk 0:02:13.9]} 13... Bg7 {[%clk 0:02:19.7]} 14.
O-O-O {[%clk 0:01:59.3]} 14... c6 {[%clk 0:02:19.8]} 15. Ne5 {[%clk 0:01:56.1]}
15... Qd6 {[%clk 0:01:44.7]} 16. Bd3 {[%clk 0:01:47.2]} 16... c5 {[%clk
0:01:24.8]} 17. f4 {[%clk 0:01:47.5]} 17... cxd4 {[%clk 0:01:15.4]} 18. Nb5
{[%clk 0:01:45.2]} 18... Qb6 {[%clk 0:01:14.2]} 19. h5 {[%clk 0:01:22.7]} 19...
g5 {[%clk 0:01:04.1]} 20. g3 {[%clk 0:00:55.4]} 20... Bf5 {[%clk 0:01:03.7]} 21.
Bxf5 {[%clk 0:00:16.5]} 21... Nxf5 {[%clk 0:01:04.6]} 22. Nxd4 {[%clk
0:00:14.3]} 22... Nxg3 {[%clk 0:01:00.8]} 23. Ng6 {[%clk 0:00:03.9]} 23... Qxd4
{[%clk 0:00:42.9]} 24. Qxd4 {[%clk 0:00:03.2]} 24... Bxd4 {[%clk 0:00:43.6]} 25.
Rxd4 {[%clk 0:00:03.2]} 25... Ne2+ {[%clk 0:00:43.5]} 26. Kd2 {[%clk 0:00:03.1]}
26... Nxd4 {[%clk 0:00:44.4]} 27. Nxf8 {[%clk 0:00:03.1]} 27... Rxf8 {[%clk
0:00:45.3]} 28. fxg5 {[%clk 0:00:03.7]} 28... Nf3+ {[%clk 0:00:45.9]} 29. Kd3
{[%clk 0:00:03.1]} 29... Nxg5 {[%clk 0:00:46.8]} 30. Rc1 {[%clk 0:00:02.9]}
30... Ne6 {[%clk 0:00:43]} 31. Re1 {[%clk 0:00:01.9]} 31... Re8 {[%clk
0:00:41.3]} 32. Rg1+ {[%clk 0:00:02.5]} 32... Kf7 {[%clk 0:00:38.4]} 33. Kc3
{[%clk 0:00:03.4]} 33... Rc8+ {[%clk 0:00:36.9]} 34. Kb4 {[%clk 0:00:03.6]}
34... Rc4+ {[%clk 0:00:35.7]} 35. Kb3 {[%clk 0:00:01.9]} 35... Nc5+ {[%clk
0:00:35]} 36. Ka3 {[%clk 0:00:01.3]} 36... Ra4# {[%clk 0:00:35.9]} 0-1

[Event "Early-Titled-Tuesday-Blitz-May-14-2024"]
[Site "Chess.com"]
[Date "2024.05.14"]
[Round "2"]
[White "martinez_95"]
[Black "SilverSwords13"]
[Result "0-1"]
[WhiteElo "2166"]
[BlackElo "2480"]
[TimeControl "180+1"]
[EndTime "8:17:55 PDT"]
[Termination "SilverSwords13 won by resignation"]

1. e4 {[%clk 0:02:56.4]} 1... c5 {[%clk 0:02:39.6]} 2. Nf3 {[%clk 0:02:51.3]}
2... e6 {[%clk 0:02:40.5]} 3. b4 {[%clk 0:02:49.4]} 3... cxb4 {[%clk 0:02:37.3]}
4. a3 {[%clk 0:02:49.3]} 4... Nc6 {[%clk 0:02:29.4]} 5. d4 {[%clk 0:02:49]} 5...
d5 {[%clk 0:02:26.9]} 6. e5 {[%clk 0:02:48.4]} 6... Nge7 {[%clk 0:02:19]} 7.
axb4 {[%clk 0:02:47.2]} 7... Nxb4 {[%clk 0:02:16.4]} 8. c3 {[%clk 0:02:42.6]}
8... Nbc6 {[%clk 0:02:14.1]} 9. Bd3 {[%clk 0:02:41.3]} 9... Ng6 {[%clk
0:01:52.9]} 10. h4 {[%clk 0:02:39.8]} 10... Be7 {[%clk 0:01:38]} 11. h5 {[%clk
0:02:39.3]} 11... Nh4 {[%clk 0:01:37.4]} 12. Nxh4 {[%clk 0:02:33.4]} 12... Bxh4
{[%clk 0:01:38.3]} 13. Qg4 {[%clk 0:02:32.3]} 13... Be7 {[%clk 0:01:24.4]} 14.
Qxg7 {[%clk 0:02:31.4]} 14... Kd7 {[%clk 0:01:21]} 15. Bxh7 {[%clk 0:02:15.3]}
15... Qe8 {[%clk 0:00:54.5]} 16. h6 {[%clk 0:01:57.4]} 16... b6 {[%clk
0:00:44.7]} 17. Bd3 {[%clk 0:01:54.4]} 17... a5 {[%clk 0:00:43.7]} 18. h7 {[%clk
0:01:49]} 18... Ba6 {[%clk 0:00:42.4]} 19. Bxa6 {[%clk 0:01:43.7]} 19... Rxa6
{[%clk 0:00:43.3]} 20. Bg5 {[%clk 0:01:13.6]} 20... Bxg5 {[%clk 0:00:33.1]} 21.
Qxg5 {[%clk 0:01:12.8]} 21... Ne7 {[%clk 0:00:33.3]} 22. Na3 {[%clk 0:01:07.6]}
22... Qc8 {[%clk 0:00:30.1]} 23. Rc1 {[%clk 0:00:49.2]} 23... Ng6 {[%clk
0:00:29.8]} 24. Qf6 {[%clk 0:00:46]} 24... Qf8 {[%clk 0:00:28.6]} 25. Nb5 {[%clk
0:00:44.1]} 25... Qe7 {[%clk 0:00:22.7]} 26. Qg7 {[%clk 0:00:37.2]} 26... Qg5
{[%clk 0:00:15]} 27. Qxf7+ {[%clk 0:00:36.1]} 27... Ne7 {[%clk 0:00:15]} 28. Rc2
{[%clk 0:00:18]} 28... Qxg2 {[%clk 0:00:14.5]} 29. Rh4 {[%clk 0:00:17]} 29...
Raa8 {[%clk 0:00:13.4]} 30. Nd6 {[%clk 0:00:13.7]} 30... Raf8 {[%clk 0:00:13]}
31. Qh5 {[%clk 0:00:12.3]} 31... Qg1+ {[%clk 0:00:13.5]} 32. Kd2 {[%clk
0:00:11.1]} 32... Rxf2+ {[%clk 0:00:13.8]} 0-1

[Event "Early-Titled-Tuesday-Blitz-May-14-2024"]
[Site "Chess.com"]
[Date "2024.05.14"]
[Round "2"]
[White "littlepinkyboy"]
[Black "Polish_fighter3000"]
[Result "0-1"]
[WhiteElo "2671"]
[BlackElo "3100"]
[TimeControl "180+1"]
[EndTime "8:17:58 PDT"]
[Termination "Polish_fighter3000 won by resignation"]

1. e4 {[%clk 0:03:00.9]} 1... Nf6 {[%clk 0:03:00.9]} 2. e5 {[%clk 0:02:59.5]}
2... Nd5 {[%clk 0:03:01.5]} 3. d4 {[%clk 0:02:59.9]} 3... d6 {[%clk 0:03:01.6]}
4. Nf3 {[%clk 0:02:57.1]} 4... dxe5 {[%clk 0:03:01]} 5. dxe5 {[%clk 0:02:57.2]}
5... c6 {[%clk 0:02:26]} 6. Be2 {[%clk 0:02:41.2]} 6... Bg4 {[%clk 0:02:23.6]}
7. h3 {[%clk 0:02:38.7]} 7... Bxf3 {[%clk 0:02:23.3]} 8. Bxf3 {[%clk 0:02:37.9]}
8... e6 {[%clk 0:02:24.2]} 9. O-O {[%clk 0:02:34]} 9... Nd7 {[%clk 0:02:24]} 10.
Re1 {[%clk 0:02:33.4]} 10... Qc7 {[%clk 0:02:19.7]} 11. Qe2 {[%clk 0:02:33.2]}
11... Bc5 {[%clk 0:02:13.5]} 12. c4 {[%clk 0:02:29.7]} 12... Ne7 {[%clk
0:02:11.8]} 13. Bf4 {[%clk 0:01:56]} 13... Ng6 {[%clk 0:02:08.8]} 14. Bh2 {[%clk
0:01:50.6]} 14... Bd4 {[%clk 0:02:08]} 15. Nc3 {[%clk 0:01:41.9]} 15... Bxe5
{[%clk 0:02:04.9]} 16. Bxe5 {[%clk 0:01:39.8]} 16... Ndxe5 {[%clk 0:02:02.7]}
17. Rad1 {[%clk 0:01:38.7]} 17... O-O {[%clk 0:01:55.2]} 18. c5 {[%clk 0:01:30]}
18... Rad8 {[%clk 0:01:46.9]} 19. Be4 {[%clk 0:01:21.2]} 19... Nf4 {[%clk
0:01:00.6]} 20. Qe3 {[%clk 0:01:05.9]} 20... Nc4 {[%clk 0:00:43.9]} 21. Qc1
{[%clk 0:00:42.8]} 21... Nd5 {[%clk 0:00:20.6]} 22. Ne2 {[%clk 0:00:33.8]} 22...
Ne5 {[%clk 0:00:15.4]} 23. Nd4 {[%clk 0:00:29.7]} 23... Ng6 {[%clk 0:00:14.2]}
24. b4 {[%clk 0:00:21.7]} 24... Nxb4 {[%clk 0:00:13.5]} 25. a3 {[%clk
0:00:16.9]} 25... Nd5 {[%clk 0:00:12.1]} 26. Rd3 {[%clk 0:00:13.6]} 26... Rd7
{[%clk 0:00:08.1]} 27. Red1 {[%clk 0:00:12.3]} 27... Ndf4 {[%clk 0:00:08.7]} 28.
R3d2 {[%clk 0:00:06.7]} 28... Rxd4 {[%clk 0:00:09]} 29. Rxd4 {[%clk 0:00:07.6]}
29... Ne2+ {[%clk 0:00:09.4]} 30. Kh1 {[%clk 0:00:08.3]} 30... Nxc1 {[%clk
0:00:10]} 0-1

[Event "Early-Titled-Tuesday-Blitz-May-14-2024"]
[Site "Chess.com"]
[Date "2024.05.14"]
[Round "2"]
[White "ckgchess"]
[Black "RojonR"]
[Result "0-1"]
[WhiteElo "2855"]
[BlackElo "2612"]
[TimeControl "180+1"]
[EndTime "8:17:58 PDT"]
[Termination "RojonR won on time"]

1. e4 {[%clk 0:03:00.9]} 1... c5 {[%clk 0:02:27.2]} 2. c3 {[%clk 0:02:56.1]}
2... Nf6 {[%clk 0:02:26.8]} 3. e5 {[%clk 0:02:56.2]} 3... Nd5 {[%clk 0:02:26.8]}
4. d4 {[%clk 0:02:57.1]} 4... cxd4 {[%clk 0:02:27.2]} 5. Bc4 {[%clk 0:02:57.1]}
5... Nb6 {[%clk 0:02:23.5]} 6. Bb3 {[%clk 0:02:57.4]} 6... d5 {[%clk 0:02:19.4]}
7. cxd4 {[%clk 0:02:56.9]} 7... Bf5 {[%clk 0:02:16.8]} 8. g4 {[%clk 0:02:39.5]}
8... Bg6 {[%clk 0:02:13.3]} 9. Nc3 {[%clk 0:02:23.7]} 9... Nc6 {[%clk
0:02:03.3]} 10. Nge2 {[%clk 0:02:24.1]} 10... e6 {[%clk 0:02:01.5]} 11. h4
{[%clk 0:02:24.3]} 11... h6 {[%clk 0:01:51.4]} 12. Nf4 {[%clk 0:02:19.2]} 12...
Bh7 {[%clk 0:01:51]} 13. Be3 {[%clk 0:02:17.3]} 13... Be7 {[%clk 0:01:43.3]} 14.
Nh5 {[%clk 0:02:08.6]} 14... Rg8 {[%clk 0:01:36.6]} 15. Bc2 {[%clk 0:01:35.3]}
15... Bxc2 {[%clk 0:01:31.4]} 16. Qxc2 {[%clk 0:01:36.2]} 16... Qd7 {[%clk
0:01:30.8]} 17. O-O-O {[%clk 0:01:26.5]} 17... O-O-O {[%clk 0:01:30.3]} 18. b3
{[%clk 0:01:26.5]} 18... Kb8 {[%clk 0:01:27.2]} 19. Kb2 {[%clk 0:01:24]} 19...
Bb4 {[%clk 0:01:21.5]} 20. a3 {[%clk 0:01:17.9]} 20... Bxc3+ {[%clk 0:01:20.3]}
21. Qxc3 {[%clk 0:01:18.3]} 21... Rc8 {[%clk 0:01:21.1]} 22. Qd3 {[%clk
0:01:16.7]} 22... Na5 {[%clk 0:01:20.4]} 23. Bd2 {[%clk 0:01:13]} 23... Nac4+
{[%clk 0:00:57]} 24. bxc4 {[%clk 0:01:13.3]} 24... dxc4 {[%clk 0:00:57.9]} 25.
Qf3 {[%clk 0:00:44.7]} 25... c3+ {[%clk 0:00:57.2]} 26. Ka2 {[%clk 0:00:45.5]}
26... Qb5 {[%clk 0:00:23.7]} 27. Bxc3 {[%clk 0:00:37.2]} 27... Qc4+ {[%clk
0:00:24.2]} 28. Ka1 {[%clk 0:00:35.2]} 28... Qb3 {[%clk 0:00:24.5]} 29. Rd3
{[%clk 0:00:20.9]} 29... Na4 {[%clk 0:00:21.3]} 30. Rc1 {[%clk 0:00:04]} 30...
Rxc3 {[%clk 0:00:18]} 0-1

[Event "Early-Titled-Tuesday-Blitz-May-14-2024"]
[Site "Chess.com"]
[Date "2024.05.14"]
[Round "2"]
[White "Mops_2004"]
[Black "slorovel"]
[Result "1-0"]
[WhiteElo "2820"]
[BlackElo "2561"]
[TimeControl "180+1"]
[EndTime "8:18:00 PDT"]
[Termination "Mops_2004 won by checkmate"]

1. g3 {[%clk 0:03:00.9]} 1... g6 {[%clk 0:02:57.4]} 2. Bg2 {[%clk 0:03:00.8]}
2... Bg7 {[%clk 0:02:58]} 3. d4 {[%clk 0:03:01.2]} 3... d5 {[%clk 0:02:51.7]} 4.
Nf3 {[%clk 0:03:00.6]} 4... Nh6 {[%clk 0:02:49.6]} 5. h4 {[%clk 0:02:56.8]} 5...
Bg4 {[%clk 0:02:43.4]} 6. h5 {[%clk 0:02:57]} 6... Bxh5 {[%clk 0:02:40.9]} 7.
Bxh6 {[%clk 0:02:53.1]} 7... Bxh6 {[%clk 0:02:35]} 8. g4 {[%clk 0:02:53.5]} 8...
Bxg4 {[%clk 0:02:34.9]} 9. Rxh6 {[%clk 0:02:54.4]} 9... Nc6 {[%clk 0:02:30.8]}
10. c3 {[%clk 0:02:44.9]} 10... Bxf3 {[%clk 0:02:27.3]} 11. Bxf3 {[%clk
0:02:44.3]} 11... e6 {[%clk 0:02:28]} 12. Qd2 {[%clk 0:02:41.4]} 12... Qf6
{[%clk 0:02:27.9]} 13. Na3 {[%clk 0:02:39]} 13... O-O-O {[%clk 0:02:27.7]} 14.
O-O-O {[%clk 0:02:38.7]} 14... Ne7 {[%clk 0:02:24.6]} 15. Rdh1 {[%clk
0:02:36.9]} 15... Qg7 {[%clk 0:02:22.9]} 16. e4 {[%clk 0:02:22.3]} 16... dxe4
{[%clk 0:02:15.1]} 17. Bxe4 {[%clk 0:02:23.2]} 17... Kb8 {[%clk 0:02:11.3]} 18.
Qf4 {[%clk 0:02:17.7]} 18... Nd5 {[%clk 0:01:45.7]} 19. Qh4 {[%clk 0:02:05.7]}
19... Nf6 {[%clk 0:01:39.5]} 20. Bf3 {[%clk 0:02:04.1]} 20... a6 {[%clk
0:01:37]} 21. Nc4 {[%clk 0:02:02.9]} 21... Ka7 {[%clk 0:01:04.7]} 22. Na5 {[%clk
0:02:01.8]} 22... c6 {[%clk 0:01:02.1]} 23. Bxc6 {[%clk 0:01:58]} 23... bxc6
{[%clk 0:00:56.7]} 24. Nxc6+ {[%clk 0:01:58.9]} 24... Kb6 {[%clk 0:00:54.9]} 25.
Nxd8 {[%clk 0:01:58.7]} 25... Rxd8 {[%clk 0:00:55.8]} 26. Qg3 {[%clk 0:01:38.5]}
26... Rd5 {[%clk 0:00:43.5]} 27. Qb8+ {[%clk 0:01:37.7]} 27... Kc6 {[%clk
0:00:43.5]} 28. R6h4 {[%clk 0:01:30.6]} 28... g5 {[%clk 0:00:40.4]} 29. Rh6
{[%clk 0:01:29.3]} 29... Rf5 {[%clk 0:00:29.8]} 30. a4 {[%clk 0:01:23.9]} 30...
g4 {[%clk 0:00:29.3]} 31. a5 {[%clk 0:01:15.6]} 31... Qg5+ {[%clk 0:00:23.5]}
32. Kb1 {[%clk 0:01:15.3]} 32... Rxa5 {[%clk 0:00:18.1]} 33. Qc8+ {[%clk
0:01:15.4]} 33... Kb5 {[%clk 0:00:12.9]} 34. Qb7+ {[%clk 0:01:06.4]} 34... Kc4
{[%clk 0:00:09.6]} 35. Qb4+ {[%clk 0:00:48.8]} 35... Kd3 {[%clk 0:00:08.6]} 36.
Qb3 {[%clk 0:00:48.7]} 36... Ke4 {[%clk 0:00:02.8]} 37. Re1+ {[%clk 0:00:36.9]}
37... Kf3 {[%clk 0:00:02.8]} 38. Qd1+ {[%clk 0:00:35.6]} 38... Kg2 {[%clk
0:00:01.9]} 39. Rg1+ {[%clk 0:00:34.6]} 39... Kxf2 {[%clk 0:00:02.8]} 40. Qe1+
{[%clk 0:00:33.7]} 40... Kf3 {[%clk 0:00:03.2]} 41. Rf1+ {[%clk 0:00:32.9]}
41... Kg2 {[%clk 0:00:03.1]} 42. Qf2# {[%clk 0:00:31.9]} 1-0

[Event "Early-Titled-Tuesday-Blitz-May-14-2024"]
[Site "Chess.com"]
[Date "2024.05.14"]
[Round "2"]
[White "Sosat98"]
[Black "SuperJesus88"]
[Result "0-1"]
[WhiteElo "2758"]
[BlackElo "2521"]
[TimeControl "180+1"]
[EndTime "8:18:00 PDT"]
[Termination "SuperJesus88 won by checkmate"]

1. e4 {[%clk 0:03:00.9]} 1... d6 {[%clk 0:02:54.9]} 2. d4 {[%clk 0:03:00.8]}
2... Nf6 {[%clk 0:02:55.3]} 3. Nc3 {[%clk 0:03:01.3]} 3... e5 {[%clk 0:02:55.8]}
4. Nge2 {[%clk 0:03:00.8]} 4... Be7 {[%clk 0:02:55.6]} 5. h3 {[%clk 0:03:00.9]}
5... O-O {[%clk 0:02:55.5]} 6. g4 {[%clk 0:03:01.5]} 6... c6 {[%clk 0:02:54.6]}
7. a4 {[%clk 0:02:59.9]} 7... a5 {[%clk 0:02:53.4]} 8. Bg2 {[%clk 0:03:00.3]}
8... Na6 {[%clk 0:02:53.7]} 9. O-O {[%clk 0:03:00.3]} 9... Nb4 {[%clk
0:02:53.9]} 10. Be3 {[%clk 0:03:00.8]} 10... exd4 {[%clk 0:02:50.4]} 11. Nxd4
{[%clk 0:02:59.2]} 11... d5 {[%clk 0:02:49.7]} 12. e5 {[%clk 0:02:54.6]} 12...
Nd7 {[%clk 0:02:35.7]} 13. f4 {[%clk 0:02:55]} 13... c5 {[%clk 0:02:29.2]} 14.
e6 {[%clk 0:02:42.3]} 14... Nb6 {[%clk 0:02:14.4]} 15. Nf5 {[%clk 0:01:13]}
15... d4 {[%clk 0:02:12.8]} 16. Nb5 {[%clk 0:01:11.4]} 16... Bxe6 {[%clk
0:01:17.9]} 17. Nxe7+ {[%clk 0:01:06.5]} 17... Qxe7 {[%clk 0:01:18.2]} 18. Bf2
{[%clk 0:01:03.2]} 18... Bd5 {[%clk 0:01:18.5]} 19. c3 {[%clk 0:00:55.7]} 19...
Bxg2 {[%clk 0:01:13.8]} 20. Re1 {[%clk 0:00:42.4]} 20... Qf6 {[%clk 0:00:56.1]}
21. cxb4 {[%clk 0:00:39.8]} 21... Bc6 {[%clk 0:00:50.7]} 22. bxc5 {[%clk
0:00:39.1]} 22... Nd5 {[%clk 0:00:47.1]} 23. f5 {[%clk 0:00:24]} 23... Nf4
{[%clk 0:00:28]} 24. Kh2 {[%clk 0:00:19.3]} 24... Qh6 {[%clk 0:00:26.6]} 25. h4
{[%clk 0:00:16.6]} 25... d3 {[%clk 0:00:20.4]} 26. Qd2 {[%clk 0:00:16.2]} 26...
g5 {[%clk 0:00:14.4]} 27. Bg3 {[%clk 0:00:10.4]} 27... Rae8 {[%clk 0:00:14.5]}
28. Nd6 {[%clk 0:00:08.5]} 28... Re2+ {[%clk 0:00:14.1]} 29. Rxe2 {[%clk
0:00:08.7]} 29... dxe2 {[%clk 0:00:14.9]} 30. Re1 {[%clk 0:00:06.4]} 30... Rd8
{[%clk 0:00:12.7]} 31. Bxf4 {[%clk 0:00:05.2]} 31... Qxh4+ {[%clk 0:00:12.5]}
32. Kg1 {[%clk 0:00:05.2]} 32... Qh1+ {[%clk 0:00:11]} 33. Kf2 {[%clk
0:00:05.8]} 33... Qf3+ {[%clk 0:00:11.6]} 34. Kg1 {[%clk 0:00:05.4]} 34... Qg2#
{[%clk 0:00:12.2]} 0-1

[Event "Early-Titled-Tuesday-Blitz-May-14-2024"]
[Site "Chess.com"]
[Date "2024.05.14"]
[Round "2"]
[White "GMAneta"]
[Black "sokidze"]
[Result "0-1"]
[WhiteElo "2559"]
[BlackElo "2805"]
[TimeControl "180+1"]
[EndTime "8:18:01 PDT"]
[Termination "sokidze won on time"]

1. d4 {[%clk 0:02:55.8]} 1... d5 {[%clk 0:02:59.7]} 2. Nf3 {[%clk 0:02:55.6]}
2... Nf6 {[%clk 0:02:59.4]} 3. c4 {[%clk 0:02:21.9]} 3... e6 {[%clk 0:02:58]} 4.
Nc3 {[%clk 0:01:58.1]} 4... a6 {[%clk 0:02:58]} 5. cxd5 {[%clk 0:01:59]} 5...
exd5 {[%clk 0:02:58.4]} 6. Bg5 {[%clk 0:01:59.2]} 6... Be6 {[%clk 0:02:58.4]} 7.
Qc2 {[%clk 0:02:00.1]} 7... Bd6 {[%clk 0:02:50.7]} 8. e3 {[%clk 0:02:01]} 8...
Nbd7 {[%clk 0:02:50.7]} 9. Bd3 {[%clk 0:01:51.3]} 9... c6 {[%clk 0:02:50.3]} 10.
O-O {[%clk 0:01:14.5]} 10... Qc7 {[%clk 0:02:48.8]} 11. Rfc1 {[%clk 0:01:13.3]}
11... Bg4 {[%clk 0:02:26.5]} 12. h3 {[%clk 0:01:11]} 12... Bxf3 {[%clk
0:02:21.6]} 13. gxf3 {[%clk 0:01:11.9]} 13... h6 {[%clk 0:02:22.1]} 14. Bxf6
{[%clk 0:01:10.1]} 14... Nxf6 {[%clk 0:02:22.4]} 15. Rab1 {[%clk 0:01:08.7]}
15... Kf8 {[%clk 0:01:58.6]} 16. b4 {[%clk 0:00:48.1]} 16... Qd7 {[%clk
0:01:58.6]} 17. Kg2 {[%clk 0:00:21.6]} 17... Bc7 {[%clk 0:01:10.7]} 18. a4
{[%clk 0:00:07.2]} 18... Qd6 {[%clk 0:01:09.3]} 19. Rg1 {[%clk 0:00:03.6]} 19...
Qh2+ {[%clk 0:00:54.2]} 20. Kf1 {[%clk 0:00:04.5]} 20... Re8 {[%clk 0:00:49.5]}
21. Bf5 {[%clk 0:00:01.6]} 21... g6 {[%clk 0:00:30.8]} 22. Bxg6 {[%clk
0:00:01.8]} 22... fxg6 {[%clk 0:00:14.8]} 23. Qxg6 {[%clk 0:00:02.7]} 23... Ke7
{[%clk 0:00:15.5]} 24. Qg7+ {[%clk 0:00:02.8]} 24... Ke6 {[%clk 0:00:16.2]} 25.
f4 {[%clk 0:00:02.7]} 25... Rhg8 {[%clk 0:00:14.9]} 26. Qxc7 {[%clk 0:00:02.9]}
26... Rxg1+ {[%clk 0:00:11.9]} 27. Ke2 {[%clk 0:00:03.8]} 27... Rxb1 {[%clk
0:00:12.6]} 28. Qe5+ {[%clk 0:00:03.4]} 28... Kf7 {[%clk 0:00:11.9]} 29. Qc7+
{[%clk 0:00:03.7]} 29... Re7 {[%clk 0:00:12.5]} 0-1